[Event "18th Chefchaouen Open 2019"]
[Site "Chefchaouen"]
[Date "2019.07.17"]
[Round "5.6"]
[White "Benaino, Samir"]
[Black "Gorbatov, Alexej"]
[Result "1/2-1/2"]
[ECO "D02"]
[WhiteElo "2063"]
[BlackElo "2374"]
[Annotator "NA"]
[PlyCount "108"]
[EventDate "2019.07.15"]
[EventType "swiss"]
[EventCountry "MAR"]
[SourceTitle "playchess.com"]
[Source "ChessBase"]
[SourceQuality "1"]
[TimeControl "5400+30"]

1. d4 {[%emt 0:00:00]} c5 {[%emt 0:00:00]} 2. e3 {[%emt 0:00:02]} d5 {[%emt 0:00:00]} 3. Nf3 {[%emt 0:00:48]} Nc6 {[%emt 0:00:37]} 4. b3 {[%emt 0:06:17]} cxd4 {[%emt 0:01:04]} 5. exd4 {[%emt 0:02:46]} Bg4 {[%emt 0:00:45]} 6. Bb2 {[%emt 0:01:18]} e6 {[%emt 0:00:34]} 7. a3 {[%emt 0:00:30]} Bd6 {[%emt 0:04:38]} 8. Nbd2 {[%emt 0:06:08]} Nge7 {[%emt 0:00:29]} 9. Bd3 {[%emt 0:00:54]} Rc8 {[%emt 0:04:55]} 10. O-O {[%emt 0:09:53]} Bf4 {[%emt 0:01:40]} 11. h3 {[%emt 0:05:13]} Bh5 {[%emt 0:00:31]} 12. Qe1 {[%emt 0:09:48]} Bxd2 {[%emt 0:01:08]} 13. Nxd2 {[%emt 0:02:56]} Bg6 {[%emt 0:00:05]} 14. Bxg6 {[%emt 0:01:14]} hxg6 {[%emt 0:00:16]} 15. Nf3 {[%emt 0:00:35]} Nf5 {[%emt 0:00:16]} 16. c4 {[%emt 0:00:34]} O-O {[%emt 0:10:58]} 17. c5 {[%emt 0:04:10]} Nh4 {[%emt 0:00:24]} 18. Qe3 {[%emt 0:06:04]} Nxf3+ {[%emt 0:00:14]} 19. Qxf3 {[%emt 0:00:07]} Qh4 {[%emt 0:05:59]} 20. Rad1 {[%emt 0:04:58]} Rfd8 {[%emt 0:00:56]} 21. Rfe1 {[%emt 0:00:51]} b6 {[%emt 0:03:26]} 22. b4 {[%emt 0:01:27]} bxc5 {[%emt 0:00:53]} 23. dxc5 {[%emt 0:03:43]} Qc4 {[%emt 0:00:14]} 24. Qe2 {[%emt 0:03:35]} Qxe2 {[%emt 0:00:34]} 25. Rxe2 {[%emt 0:00:06]} a6 {[%emt 0:01:53]} 26. f4 {[%emt 0:02:45]} Rb8 {[%emt 0:01:43]} 27. Be5 {[%emt 0:00:13]} Rb7 {[%emt 0:01:18]} 28. Rb2 {[%emt 0:07:00]} g5 {[%emt 0:00:53]} 29. Rdb1 {[%emt 0:01:32]} gxf4 {[%emt 0:00:06]} 30. Bxf4 {[%emt 0:01:39]} e5 {[%emt 0:00:05]} 31. Bg3 {[%emt 0:01:08]} Rdb8 {[%emt 0:02:10]} 32. a4 {[%emt 0:02:06]} Rxb4 {[%emt 0:00:12]} 33. Bxe5 {[%emt 0:00:43]} Rxb2 {[%emt 0:00:32]} 34. Rxb2 {[%emt 0:00:01]} Rxb2 {[%emt 0:00:07]} 35. Bxb2 {[%emt 0:00:05]} f6 {[%emt 0:00:13]} 36. Kf2 {[%emt 0:00:33]} Kf7 {[%emt 0:00:01]} 37. Ke3 {[%emt 0:00:21]} Ke6 {[%emt 0:00:03]} 38. g4 {[%emt 0:01:57]} g5 {[%emt 0:02:10]} 39. Bc3 {[%emt 0:01:56]} Ne5 {[%emt 0:21:24]} 40. Kd4 {[%emt 0:04:32]} Nf3+ {[%emt 0:03:36]} 41. Ke3 {[%emt 0:00:22]} Ng1 {[%emt 0:01:25]} 42. c6 {[%emt 0:00:05]} Kd6 {[%emt 0:00:17]} 43. Bxf6 {[%emt 0:00:06]} Nxh3 {[%emt 0:00:08]} 44. Kf3 {[%emt 0:01:24]} Kxc6 {[%emt 0:00:08]} 45. Kg3 {[%emt 0:00:45]} Nf4 {[%emt 0:00:12]} 46. Bxg5 {[%emt 0:00:16]} Ne6 {[%emt 0:00:02]} 47. Bd2 {[%emt 0:00:39]} d4 {[%emt 0:04:05]} 48. g5 {[%emt 0:00:21]} Kd5 {[%emt 0:00:01]} 49. Kg4 {[%emt 0:01:46]} Ke4 {[%emt 0:00:55]} 50. g6 {[%emt 0:00:35]} Ke5 {[%emt 0:04:57]} 51. Bh6 {[%emt 0:01:23]} Kf6 {[%emt 0:01:07]} 52. g7 {[%emt 0:02:07]} Kf7 {[%emt 0:00:23]} 53. Kf5 {[%emt 0:00:14]} Nc5 {[%emt 0:00:14]} 54. Ke5 {[%emt 0:00:42]} Ke8 {[%emt 0:26:04]} 1/2-1/2

[Event "18th Chefchaouen Open 2019"]
[Site "Chefchaouen"]
[Date "2019.07.18"]
[Round "6.4"]
[White "Karpatchev, Aleksandr"]
[Black "Akhrof, Lissandine"]
[Result "0-1"]
[ECO "C51"]
[WhiteElo "2445"]
[BlackElo "2153"]
[Annotator "NA"]
[PlyCount "80"]
[EventDate "2019.07.15"]
[EventType "swiss"]
[EventCountry "MAR"]
[SourceTitle "playchess.com"]
[Source "ChessBase"]
[SourceQuality "1"]
[TimeControl "5400+30"]

1. e4 {[%emt 0:01:13]} e5 {[%emt 0:00:00]} 2. Bc4 {[%emt 0:00:50]} Nc6 {[%emt 0:01:14]} 3. Nf3 {[%emt 0:00:47]} Bc5 {[%emt 0:00:28]} 4. b4 {[%emt 0:00:44]} Bxb4 {[%emt 0:00:24]} 5. c3 {[%emt 0:00:01]} Be7 {[%emt 0:00:36]} 6. d4 {[%emt 0:00:12]} Na5 {[%emt 0:00:20]} 7. Be2 {[%emt 0:00:14]} d6 {[%emt 0:01:12] C51: Evans Gambit: Declined and Accepted without 5...Ba5} 8. Qa4+ {[%emt 0:00:15]} c6 {[%emt 0:00:15]} 9. dxe5 {[%emt 0:00:05]} dxe5 {[%emt 0:00:59]} 10. Nxe5 {[%emt 0:00:05]} Nf6 {[%emt 0:00:17]} 11. O-O {[%emt 0:00:06]} O-O {[%emt 0:08:40]} 12. Bf4 {[%emt 0:04:52]} b5 {[%emt 0:04:38]} 13. Qc2 {[%emt 0:01:00]} Be6 {[%emt 0:06:59]} 14. Nd2 {[%emt 0:06:00] [#]} Bd6 $146 {[%emt 0:04:26]} ({Predecessor:} 14... Nd7 15. Nef3 {½-½ (52) Pruijssers,R (2484)-Kazhgaleyev,M (2637) Wijk aan Zee 2011}) 15. Bg3 {[%emt 0:08:11]} Qc7 {[%emt 0:02:21]} 16. f4 {[%emt 0:02:23]} Rad8 {[%emt 0:04:13]} 17. Rad1 {[%emt 0:09:39]} Rfe8 {[%emt 0:04:02]} 18. Kh1 {[%emt 0:02:44]} Bc8 {[%emt 0:06:10]} 19. h3 {[%emt 0:04:23]} a6 {[%emt 0:05:43]} 20. Bf3 {[%emt 0:13:47]} c5 {[%emt 0:05:14]} 21. Nb3 {[%emt 0:15:18]} Nc4 {[%emt 0:08:08]} 22. Nxc4 $1 {[%emt 0:00:42]} bxc4 {[%emt 0:00:06]} 23. e5 {[%emt 0:00:14]} cxb3 {[%emt 0:01:53]} 24. axb3 {[%emt 0:00:16]} Be7 {[%emt 0:00:55]} 25. exf6 {[%emt 0:00:11]} Bxf6 {[%emt 0:00:07]} 26. Rxd8 $11 {[%emt 0:04:37]} Qxd8 {[%emt 0:02:54]} 27. Re1 {[%emt 0:04:48]} Rxe1+ {[%emt 0:01:18]} 28. Bxe1 {[%emt 0:00:03]} g6 {[%emt 0:01:44]} 29. g4 {[%emt 0:01:12]} Be6 {[%emt 0:04:08]} 30. Kg2 {[%emt 0:04:42]} Qb8 {[%emt 0:02:30]} 31. Qf2 {[%emt 0:04:32]} Qxf4 {[%emt 0:02:38]} 32. Bd2 {[%emt 0:02:06]} Qd6 {[%emt 0:01:36]} 33. c4 {[%emt 0:01:15]} Bh4 {[%emt 0:02:49]} 34. Qxh4 {[%emt 0:02:40]} Qxd2+ {[%emt 0:00:06]} 35. Qf2 {[%emt 0:00:07]} Qxf2+ {[%emt 0:00:41]} 36. Kxf2 {[%emt 0:00:01]} Kg7 {[%emt 0:00:57]} 37. Ke3 {[%emt 0:00:18]} Kf6 {[%emt 0:00:21]} 38. h4 {[%emt 0:02:58]} h6 {[%emt 0:00:23]} 39. Kf4 {[%emt 0:00:21]} g5+ {[%emt 0:00:16]} 40. hxg5+ {[%emt 0:00:23]} hxg5+ {[%emt 0:00:09]} 0-1

[Event "18th Chefchaouen Open 2019"]
[Site "Chefchaouen"]
[Date "2019.07.19"]
[Round "7.5"]
[White "Buscara, Sevan"]
[Black "Benaddi, Mouhcine"]
[Result "1/2-1/2"]
[ECO "A07"]
[WhiteElo "2404"]
[BlackElo "2111"]
[Annotator "ChessBase"]
[PlyCount "85"]
[EventDate "2019.07.15"]
[EventType "swiss"]
[EventCountry "MAR"]
[SourceTitle "playchess.com"]
[Source "ChessBase"]
[SourceQuality "1"]
[TimeControl "5400+30"]

1. g3 {[%emt 0:00:00]} d5 {[%emt 0:00:00]} 2. Bg2 {[%emt 0:00:00]} Nf6 {[%emt 0:00:03]} 3. Nf3 {[%emt 0:00:09]} Bf5 {[%emt 0:00:47]} 4. d3 {[%emt 0:02:18]} e6 {[%emt 0:01:22]} 5. O-O {[%emt 0:01:02]} Be7 {[%emt 0:02:17]} 6. c4 {[%emt 0:00:39]} Nbd7 {[%emt 0:04:38]} 7. Nh4 {[%emt 0:00:38]} Bg4 {[%emt 0:02:46]} 8. h3 {[%emt 0:00:06]} Bh5 {[%emt 0:00:09]} 9. cxd5 {[%emt 0:00:34]} Nxd5 {[%emt 0:04:32]} 10. Nf3 {[%emt 0:01:12]} O-O {[%emt 0:03:31]} 11. Nbd2 {[%emt 0:02:16]} c6 {[%emt 0:02:55]} 12. Qc2 {[%emt 0:04:46]} h6 {[%emt 0:01:44]} 13. a3 {[%emt 0:00:59]} Qc7 {[%emt 0:01:42]} 14. b4 {[%emt 0:01:53]} a5 {[%emt 0:03:29]} 15. e4 {[%emt 0:03:27]} N5b6 {[%emt 0:03:17]} 16. b5 {[%emt 0:01:10]} Rfc8 {[%emt 0:05:11]} 17. Rb1 {[%emt 0:11:31]} cxb5 {[%emt 0:04:26]} 18. Qxc7 {[%emt 0:00:14]} Rxc7 {[%emt 0:00:04]} 19. Rxb5 {[%emt 0:00:10]} Rc5 {[%emt 0:00:08]} 20. Rb1 {[%emt 0:00:22]} Rc3 {[%emt 0:01:26]} 21. Bb2 {[%emt 0:05:22]} Rxd3 {[%emt 0:06:43]} 22. g4 {[%emt 0:00:52]} Bg6 {[%emt 0:00:22]} 23. Bd4 {[%emt 0:00:18]} Bd8 {[%emt 0:04:52]} 24. Rfc1 {[%emt 0:12:22]} Rxa3 {[%emt 0:05:21]} 25. Bf1 {[%emt 0:02:04]} Rxf3 {[%emt 0:03:29]} 26. Nxf3 {[%emt 0:00:08]} Bxe4 {[%emt 0:00:03]} 27. Rb3 {[%emt 0:00:39]} a4 {[%emt 0:01:41]} 28. Re3 {[%emt 0:04:14]} Bc6 {[%emt 0:01:13]} 29. Ra1 {[%emt 0:03:20]} Nd5 {[%emt 0:01:13]} 30. Rb3 {[%emt 0:04:37]} Ra5 {[%emt 0:04:04]} 31. Rbb1 {[%emt 0:01:29]} f6 {[%emt 0:00:33]} 32. Nd2 {[%emt 0:02:05]} e5 {[%emt 0:02:15]} 33. Bb2 {[%emt 0:01:51]} Be7 {[%emt 0:01:28]} 34. Nc4 {[%emt 0:00:41]} Ra8 {[%emt 0:00:20]} 35. Ba3 {[%emt 0:00:57]} Nc5 {[%emt 0:04:00]} 36. Nb6 {[%emt 0:07:10]} Nxb6 {[%emt 0:04:06]} 37. Rxb6 {[%emt 0:00:49]} Kf8 {[%emt 0:00:17]} 38. Bb5 {[%emt 0:03:17]} Nd7 {[%emt 0:02:41]} 39. Rxc6 {[%emt 0:02:22]} bxc6 {[%emt 0:01:22]} 40. Bxc6 {[%emt 0:00:13]} Ra7 {[%emt 0:00:15]} 41. Bxd7 {[%emt 0:00:39]} Rxd7 {[%emt 0:00:04]} 42. Bxe7+ {[%emt 0:00:20]} Kxe7 {[%emt 0:00:02]} 43. Rxa4 {[%emt 0:22:15]} 1/2-1/2

[Event "18th Chefchaouen Open 2019"]
[Site "Chefchaouen"]
[Date "2019.07.19"]
[Round "7.6"]
[White "Fellousi, Abdelaziz"]
[Black "Duzhakov, Ilya"]
[Result "0-1"]
[ECO "C01"]
[WhiteElo "2100"]
[BlackElo "2383"]
[Annotator "ChessBase"]
[PlyCount "92"]
[EventDate "2019.07.15"]
[EventType "swiss"]
[EventCountry "MAR"]
[SourceTitle "playchess.com"]
[Source "ChessBase"]
[SourceQuality "1"]
[TimeControl "5400+30"]

1. e4 {[%emt 1:30:30]} e6 {[%emt 0:00:13]} 2. d4 {[%emt 0:00:00]} d5 {[%emt 0:00:09]} 3. Nc3 {[%emt 0:00:00]} Bb4 {[%emt 0:01:08]} 4. exd5 {[%emt 0:00:00]} exd5 {[%emt 0:00:18]} 5. Bd3 {[%emt 0:00:00]} c6 {[%emt 0:01:24]} 6. Nge2 {[%emt 0:00:00]} Nf6 {[%emt 0:00:31]} 7. O-O {[%emt 0:00:00]} O-O {[%emt 0:00:21]} 8. a3 {[%emt 0:00:00]} Bd6 {[%emt 0:01:38]} 9. h3 {[%emt 0:00:00]} Re8 {[%emt 0:04:28]} 10. Bg5 {[%emt 0:00:00]} h6 {[%emt 0:03:08]} 11. Bh4 {[%emt 0:00:00]} Nbd7 {[%emt 0:00:56]} 12. Qd2 {[%emt 0:00:00]} Nf8 {[%emt 0:01:03]} 13. Bg3 {[%emt 0:00:00]} Ne4 {[%emt 0:13:28]} 14. Bxe4 {[%emt 0:00:00]} dxe4 {[%emt 0:00:44]} 15. d5 {[%emt 0:00:00]} Bxg3 {[%emt 0:09:01]} 16. Nxg3 {[%emt 0:00:00]} cxd5 {[%emt 0:03:57]} 17. Qxd5 {[%emt 0:00:00]} Qxd5 {[%emt 0:00:11]} 18. Nxd5 {[%emt 0:00:00]} Re5 {[%emt 0:00:10]} 19. Rad1 {[%emt 0:00:00]} Bd7 {[%emt 0:20:32]} 20. Rfe1 {[%emt 0:00:00]} Rae8 {[%emt 0:00:46]} 21. Rd4 {[%emt 0:00:00]} f5 {[%emt 0:04:14]} 22. Ne2 {[%emt 0:00:00]} Rc8 {[%emt 0:14:22]} 23. Nec3 {[%emt 0:00:00]} Bc6 {[%emt 0:01:50]} 24. Nb4 {[%emt 0:00:00]} Rc5 {[%emt 0:10:02]} 25. Red1 {[%emt 0:00:00]} Kf7 {[%emt 0:01:43]} 26. Nxc6 {[%emt 0:00:00]} R8xc6 {[%emt 0:00:12]} 27. Kf1 {[%emt 0:00:26]} a5 {[%emt 0:02:08]} 28. g4 {[%emt 0:04:26]} g6 {[%emt 0:00:30]} 29. gxf5 {[%emt 0:00:08]} gxf5 {[%emt 0:00:02]} 30. Rd6 {[%emt 0:01:40]} Ke7 {[%emt 0:00:44]} 31. Rxc6 {[%emt 0:00:29]} bxc6 {[%emt 0:00:03]} 32. Ke2 {[%emt 0:00:53]} Ne6 {[%emt 0:00:23]} 33. Ke3 {[%emt 0:03:19]} Rc4 {[%emt 0:00:02]} 34. f4 {[%emt 0:00:36]} exf3 {[%emt 0:00:15]} 35. Kxf3 {[%emt 0:00:03]} Ng5+ {[%emt 0:01:12]} 36. Kg2 {[%emt 0:00:01]} h5 {[%emt 0:01:56]} 37. Rd3 {[%emt 0:02:07]} h4 {[%emt 0:00:07]} 38. Rd2 {[%emt 0:02:57]} f4 {[%emt 0:00:34]} 39. Nd1 {[%emt 0:00:51]} f3+ {[%emt 0:00:24]} 40. Kh2 {[%emt 0:00:18]} Ne4 {[%emt 0:00:04]} 41. b3 {[%emt 0:00:47]} Nxd2 {[%emt 0:00:31]} 42. bxc4 {[%emt 0:00:04]} Nxc4 {[%emt 0:00:03]} 43. a4 {[%emt 0:00:45]} Ke6 {[%emt 0:00:37]} 44. Kg1 {[%emt 0:00:49]} Ke5 {[%emt 0:00:11]} 45. Kf2 {[%emt 0:00:13]} Kf4 {[%emt 0:00:02]} 46. Nc3 {[%emt 0:00:55]} Nd6 {[%emt 0:06:43]} 0-1

[Event "18th Chefchaouen Open 2019"]
[Site "Chefchaouen"]
[Date "2019.07.20"]
[Round "8.2"]
[White "Flom, Gabriel"]
[Black "Buscara, Sevan"]
[Result "0-1"]
[ECO "D17"]
[WhiteElo "2494"]
[BlackElo "2404"]
[Annotator "ChessBase"]
[PlyCount "228"]
[EventDate "2019.07.15"]
[EventType "swiss"]
[EventCountry "MAR"]
[SourceTitle "playchess.com"]
[Source "ChessBase"]
[SourceQuality "1"]
[TimeControl "5400+30"]

1. d4 {[%emt 0:00:00]} d5 {[%emt 0:00:00]} 2. c4 {[%emt 0:00:00]} c6 {[%emt 0:00:00]} 3. Nc3 {[%emt 0:00:00]} Nf6 {[%emt 0:00:06]} 4. Nf3 {[%emt 0:00:23]} dxc4 {[%emt 0:00:30]} 5. a4 {[%emt 0:00:06]} Bf5 {[%emt 0:00:16]} 6. Ne5 {[%emt 0:00:08]} Nbd7 {[%emt 0:00:29]} 7. Nxc4 {[%emt 0:00:21]} Nb6 {[%emt 0:00:18]} 8. Ne5 {[%emt 0:00:39]} a5 {[%emt 0:00:17]} 9. e3 {[%emt 0:02:39]} g6 {[%emt 0:09:28]} 10. Bd3 {[%emt 0:00:38]} Be6 {[%emt 0:00:43]} 11. Be2 {[%emt 0:12:55]} Bg7 {[%emt 0:00:44]} 12. e4 {[%emt 0:00:06]} O-O {[%emt 0:02:27]} 13. Be3 {[%emt 0:08:36]} Ne8 {[%emt 0:00:23]} 14. O-O {[%emt 0:01:29]} Nd6 {[%emt 0:02:48]} 15. f4 {[%emt 0:07:22]} Ndc4 {[%emt 0:06:57]} 16. Nxc4 {[%emt 0:05:14]} Bxc4 {[%emt 0:03:31]} 17. b3 {[%emt 0:04:40]} Bxe2 {[%emt 0:01:17]} 18. Nxe2 {[%emt 0:00:04]} f5 {[%emt 0:00:56]} 19. e5 {[%emt 0:00:02]} Nd5 {[%emt 0:00:28]} 20. Bd2 {[%emt 0:01:42]} e6 {[%emt 0:02:43]} 21. Qc2 {[%emt 0:00:10]} Rf7 {[%emt 0:00:28]} 22. Qc4 {[%emt 0:00:52]} Bf8 {[%emt 0:00:29]} 23. Rac1 {[%emt 0:07:37]} Rd7 {[%emt 0:01:26]} 24. Rf3 {[%emt 0:12:37]} Kh8 {[%emt 0:03:44]} 25. Be1 {[%emt 0:02:38]} Be7 {[%emt 0:01:29]} 26. h3 {[%emt 0:00:03]} g5 {[%emt 0:01:45]} 27. fxg5 {[%emt 0:02:20]} Bxg5 {[%emt 0:00:32]} 28. Rb1 {[%emt 0:00:07]} Rg7 {[%emt 0:02:26]} 29. Nc3 {[%emt 0:02:03]} Nxc3 {[%emt 0:03:35]} 30. Bxc3 {[%emt 0:00:36]} Qd7 {[%emt 0:00:30]} 31. b4 {[%emt 0:03:43]} axb4 {[%emt 0:02:25]} 32. Rxb4 {[%emt 0:03:25]} Bd8 {[%emt 0:04:19]} 33. Rb2 {[%emt 0:05:22]} Qd5 {[%emt 0:03:15]} 34. Qxd5 {[%emt 0:00:20]} cxd5 {[%emt 0:00:06]} 35. a5 {[%emt 0:01:19]} Bxa5 {[%emt 0:01:29]} 36. Bxa5 {[%emt 0:00:18]} Rxa5 {[%emt 0:00:23]} 37. Rfb3 {[%emt 0:00:06]} Ra7 {[%emt 0:02:19]} 38. Rb6 {[%emt 0:00:04]} Re7 {[%emt 0:00:15]} 39. Kf2 {[%emt 0:01:48]} Kg7 {[%emt 0:00:17]} 40. R2b5 {[%emt 0:01:21]} Kf7 {[%emt 0:01:23]} 41. Kf3 {[%emt 0:01:36]} Ra3+ {[%emt 0:01:14]} 42. Kf4 {[%emt 0:00:44]} Rd3 {[%emt 0:00:29]} 43. Rxb7 {[%emt 0:00:27]} Rxd4+ {[%emt 0:01:07]} 44. Kg5 {[%emt 0:03:41]} h6+ {[%emt 0:01:03]} 45. Kxh6 {[%emt 0:00:01]} Re4 {[%emt 0:00:14]} 46. Rxe7+ {[%emt 0:00:33]} Kxe7 {[%emt 0:00:06]} 47. Rb7+ {[%emt 0:00:11]} Kd8 {[%emt 0:02:57]} 48. Kg6 {[%emt 0:00:51]} Rxe5 {[%emt 0:01:53]} 49. h4 {[%emt 0:01:49]} Re2 {[%emt 0:01:48]} 50. g4 {[%emt 0:04:44]} fxg4 {[%emt 0:03:27]} 51. h5 {[%emt 0:00:01]} Rh2 {[%emt 0:01:13]} 52. Rb3 {[%emt 0:02:41]} Rh3 {[%emt 0:02:24]} 53. Rb1 {[%emt 0:00:02]} Ke7 {[%emt 0:03:53]} 54. h6 {[%emt 0:00:20]} d4 {[%emt 0:00:45]} 55. h7 {[%emt 0:02:43]} Kd6 {[%emt 0:01:36]} 56. Rb6+ {[%emt 0:00:35]} Kd7 {[%emt 0:13:11]} 57. Kg7 {[%emt 0:00:03]} g3 {[%emt 0:00:58]} 58. Kh8 {[%emt 0:03:31]} g2 {[%emt 0:01:59]} 59. Rb7+ {[%emt 0:00:03]} Kd6 {[%emt 0:00:14]} 60. Rg7 {[%emt 0:00:01]} e5 {[%emt 0:00:43]} 61. Rxg2 {[%emt 0:00:18]} e4 {[%emt 0:00:38]} 62. Kg7 {[%emt 0:01:09]} e3 {[%emt 0:00:26]} 63. Rg6+ {[%emt 0:00:11]} Kd5 {[%emt 0:01:04]} 64. Rh6 {[%emt 0:00:02]} Rxh6 {[%emt 0:00:33]} 65. Kxh6 {[%emt 0:00:03]} e2 {[%emt 0:00:10]} 66. h8=Q {[%emt 0:00:01]} e1=Q {[%emt 0:00:11]} 67. Qa8+ {[%emt 0:00:12]} Kc4 {[%emt 0:00:41]} 68. Qa6+ {[%emt 0:00:06]} Kb3 {[%emt 0:00:14]} 69. Qb5+ {[%emt 0:02:10]} Qb4 {[%emt 0:00:23]} 70. Qd3+ {[%emt 0:00:12]} Qc3 {[%emt 0:00:32]} 71. Qb5+ {[%emt 0:00:02]} Kc2 {[%emt 0:00:07]} 72. Qa4+ {[%emt 0:00:18]} Kc1 {[%emt 0:00:17]} 73. Qa7 {[%emt 0:00:53]} d3 {[%emt 0:00:19]} 74. Qg1+ {[%emt 0:00:05]} Kb2 {[%emt 0:00:41]} 75. Qb6+ {[%emt 0:00:05]} Qb3 {[%emt 0:02:06]} 76. Qd4+ {[%emt 0:00:19]} Qc3 {[%emt 0:01:10]} 77. Qb6+ {[%emt 0:00:09]} Kc2 {[%emt 0:00:55]} 78. Qg6 {[%emt 0:00:01]} Qc5 {[%emt 0:00:40]} 79. Kh7 {[%emt 0:01:08]} Qd5 {[%emt 0:01:27]} 80. Kh8 {[%emt 0:01:38]} Kc3 {[%emt 0:00:25]} 81. Qg3 {[%emt 0:00:37]} Kc4 {[%emt 0:03:15]} 82. Qc7+ {[%emt 0:00:15]} Kd4 {[%emt 0:00:05]} 83. Qf4+ {[%emt 0:01:04]} Qe4 {[%emt 0:00:15]} 84. Qd6+ {[%emt 0:01:21]} Ke3 {[%emt 0:00:07]} 85. Qg3+ {[%emt 0:00:12]} Qf3 {[%emt 0:00:11]} 86. Qe1+ {[%emt 0:00:41]} Qe2 {[%emt 0:00:41]} 87. Qg3+ {[%emt 0:00:05]} Ke4 {[%emt 0:00:26]} 88. Qh4+ {[%emt 0:01:06]} Ke3 {[%emt 0:00:44]} 89. Qg5+ {[%emt 0:00:46]} Kf2 {[%emt 0:00:08]} 90. Qf4+ {[%emt 0:00:41]} Kg1 {[%emt 0:00:07]} 91. Qd4+ {[%emt 0:00:17]} Kg2 {[%emt 0:00:23]} 92. Qd5+ {[%emt 0:00:29]} Qf3 {[%emt 0:00:33]} 93. Qg5+ {[%emt 0:00:30]} Kh3 {[%emt 0:00:56]} 94. Qh6+ {[%emt 0:00:19]} Kg3 {[%emt 0:00:14]} 95. Qg5+ {[%emt 0:00:56]} Kh2 {[%emt 0:00:33]} 96. Qd2+ {[%emt 0:00:27]} Kh1 {[%emt 0:00:20]} 97. Qh6+ {[%emt 0:00:24]} Kg1 {[%emt 0:00:09]} 98. Qg5+ {[%emt 0:00:29]} Kf1 {[%emt 0:00:14]} 99. Qc1+ {[%emt 0:00:19]} Ke2 {[%emt 0:00:06]} 100. Qc4 {[%emt 0:00:05]} Qh5+ {[%emt 0:00:43]} 101. Kg8 {[%emt 0:00:32]} Ke3 {[%emt 0:01:09]} 102. Qe6+ {[%emt 0:01:10]} Kd4 {[%emt 0:00:43]} 103. Qb6+ {[%emt 0:00:13]} Qc5 {[%emt 0:00:05]} 104. Qf6+ {[%emt 0:00:31]} Qe5 {[%emt 0:00:05]} 105. Qb6+ {[%emt 0:00:52]} Ke4 {[%emt 0:00:08]} 106. Qb4+ {[%emt 0:00:26]} Kf5 {[%emt 0:00:17]} 107. Qb1 {[%emt 0:00:12]} Kf6 {[%emt 0:01:22]} 108. Qf1+ {[%emt 0:00:24]} Qf5 {[%emt 0:00:02]} 109. Qa1+ {[%emt 0:00:08]} Kg6 {[%emt 0:01:02]} 110. Qg1+ {[%emt 0:01:25]} Qg5 {[%emt 0:01:06]} 111. Qd4 {[%emt 0:00:22]} d2 {[%emt 0:00:29]} 112. Qd6+ {[%emt 0:00:36]} Kf5+ {[%emt 0:00:23]} 113. Kf7 {[%emt 0:00:16]} Qh5+ {[%emt 0:00:10]} 114. Kg7 {[%emt 0:00:07]} d1=Q {[%emt 0:00:36]} 0-1

[Event "18th Chefchaouen Open 2019"]
[Site "Chefchaouen"]
[Date "2019.07.20"]
[Round "8.3"]
[White "Ameir, Moheb"]
[Black "Akhrof, Lissandine"]
[Result "1-0"]
[ECO "C56"]
[WhiteElo "2328"]
[BlackElo "2153"]
[Annotator "NA"]
[PlyCount "59"]
[EventDate "2019.07.15"]
[EventType "swiss"]
[EventCountry "MAR"]
[SourceTitle "playchess.com"]
[Source "ChessBase"]
[SourceQuality "1"]
[TimeControl "5400+30"]

1. e4 {[%emt 0:12:27]} e5 {[%emt 0:00:00]} 2. Nf3 {[%emt 0:00:15]} Nc6 {[%emt 0:00:23]} 3. d4 {[%emt 0:00:08]} exd4 {[%emt 0:00:41]} 4. Bc4 {[%emt 0:00:07]} Nf6 {[%emt 0:00:44]} 5. e5 {[%emt 0:00:07]} d5 {[%emt 0:00:40]} 6. Bb5 {[%emt 0:00:02]} Ne4 {[%emt 0:00:18]} 7. Nxd4 {[%emt 0:00:02]} Bd7 {[%emt 0:00:29]} 8. Bxc6 {[%emt 0:00:03]} bxc6 {[%emt 0:00:15]} 9. O-O {[%emt 0:00:07]} Bc5 {[%emt 0:00:54]} 10. f3 {[%emt 0:00:20]} Ng5 {[%emt 0:00:12]} 11. f4 {[%emt 0:00:06]} Ne4 {[%emt 0:00:23]} 12. Be3 {[%emt 0:00:10]} Qe7 {[%emt 0:01:07] C56: Two Knights: 4 d4 exd4 5 0-0 Nxe4} 13. Nd2 {[%emt 0:01:21]} f5 {[%emt 0:01:13]} 14. Nxe4 {[%emt 0:15:44]} fxe4 {[%emt 0:00:25]} 15. Qd2 {[%emt 0:03:09]} Bb6 {[%emt 0:04:53]} 16. Nb3 {[%emt 0:03:12]} g5 {[%emt 0:02:37]} 17. Qc3 {[%emt 0:20:49]} O-O {[%emt 0:04:02]} 18. fxg5 {[%emt 0:06:08]} Qxg5 {[%emt 0:04:02]} 19. Nc5 {[%emt 0:00:43]} Qe7 {[%emt 0:08:38]} 20. Rf6 $146 {[%emt 0:00:44]} ({Predecessor:} 20. Bd4 Bf5 21. Rf2 Bg6 {½-½ (60) Bibko,I (2310)-Obukhov,A (2485) Novosibirsk 2002}) 20... Rxf6 {[%emt 0:11:34]} 21. exf6 {[%emt 0:00:18]} Qd6 {[%emt 0:00:39] [#]} 22. Rf1 $1 {[%emt 0:05:45]} Kf7 $18 {[%emt 0:02:52]} (22... Be8 {is more resistant.} 23. b4 Bf7) 23. Nxd7 {[%emt 0:05:04]} Qxd7 {[%emt 0:00:27]} 24. Bxb6 {[%emt 0:00:18]} cxb6 {[%emt 0:05:06]} 25. Qe5 {[%emt 0:00:05]} Rf8 {[%emt 0:05:17]} 26. Rf4 {[%emt 0:03:38]} Kg8 {[%emt 0:03:48]} 27. Qg5+ {[%emt 0:08:27]} Kf7 {[%emt 0:04:35]} 28. Qg7+ {[%emt 0:00:25]} Ke8 {[%emt 0:00:14]} 29. f7+ {[%emt 0:00:03]} Ke7 {[%emt 0:00:09]} 30. Qf6# {[%emt 0:00:02]} 1-0